fUST/lending_fUST_20251112
["ID","MTS","AMOUNT","RATE_DAILY","PERIOD"]
[393672939,1762908632404,-150.0,0.00019027,2]
[393672940,1762908632413,-151.0,0.00019028,2]
[393672941,1762908632423,-198.0,0.00019028,2]
[393672942,1762908632432,-248.08703416,0.00019028,2]
[393672943,1762908632441,-500.0,0.00019028,2]
[393672944,1762908632452,-500.0,0.00019029,2]
[393672945,1762908632462,-21392.2082314,0.0001903,2]
[393672946,1762908632471,-151.0,0.0001903,2]
[393672947,1762908632480,-782.1745761,0.00019055,2]
[393672948,1762908632490,-500.0,0.00019073,2]
[393672949,1762908632499,-526.54167297,0.00019073,2]
[393672950,1762908632599,-500.0,0.00019073,2]
[393672951,1762908632629,-500.0,0.00019073,2]
[393672952,1762908632638,-500.0,0.00019073,2]
[393672953,1762908632648,-151.0,0.00019083,2]
[393672954,1762908632657,-332.61002942,0.00019137,2]
[393672955,1762908632667,-151.0,0.00019138,2]
[393672956,1762908632676,-412.2752724,0.00019176,2]
[393672957,1762908632686,-242.39200864,0.00019192,2]
[393672958,1762908632695,-211.20076586,0.00019276,2]
[393672959,1762908632705,-380.16137854,0.00019276,2]
[393672960,1762908632714,-675.84245074,0.00019276,2]
[393672961,1762908632724,-412.2752724,0.00019375,2]
[393672962,1762908632734,-412.2752724,0.00019575,2]
[393672963,1762908632743,-1000.0,0.00019621,2]
[393672964,1762908632753,-1000.0,0.00019621,2]
[393672965,1762908632762,-241.59183355,0.00019645,2]
[393672966,1762908632771,-412.2752724,0.00019774,2]
[393672967,1762908632780,-500.0,0.00019892,2]
[393672968,1762908632789,-160.0,0.00019922,2]
[393672969,1762908632798,-412.2752724,0.00019973,2]
[393672970,1762908632809,-288.73765403,0.00019974,2]
[393672971,1762908632818,-348.14,0.00019976,3]
[393672972,1762908632826,-500.0,0.00019984,2]
[393672973,1762908632836,-500.0,0.00019984,2]
[393672974,1762908632845,-500.0,0.00019984,2]
[393672975,1762908632854,-521.12943612,0.00019984,2]
[393672976,1762908632863,-160.57874806,0.00019985,2]
[393672977,1762908632873,-86957.76193318,0.00019986,2]
[393672978,1762908638062,-500.0,0.00019025,2]
[393672980,1762908638072,-500.0,0.00019025,2]
[393672982,1762908638082,-500.0,0.00019025,2]
[393672983,1762908638092,-188.38992111,0.00019025,2]
[393672984,1762908638103,-420.1776622,0.00019025,2]
[393672985,1762908638113,-500.0,0.00019025,2]
[393672986,1762908638123,-608.56758331,0.00019025,2]
[393672987,1762908638132,-500.0,0.00019025,2]
[393672988,1762908638142,-370.96360944,0.00019025,2]
[393672989,1762908638152,-347.39953714,0.00019025,2]
[393672990,1762908638165,-586.0743243,0.00019025,2]
[393672991,1762908638175,-608.56758331,0.00019025,2]
[393672992,1762908638184,-500.0,0.00019025,2]
[393672993,1762908638194,-608.56758331,0.00019025,2]
[393672994,1762908638205,-500.0,0.00019025,2]
[393672995,1762908638215,-500.0,0.00019025,2]
[393672996,1762908638224,-499.78576483,0.00019025,2]
[393672997,1762908638234,-608.56758331,0.00019025,2]
[393672998,1762908638248,-500.0,0.00019025,2]
[393672999,1762908638257,-608.56758331,0.00019025,2]
[393673000,1762908638267,-142.38256554,0.00019025,2]
[393673001,1762908638279,-466.18501777,0.00019025,2]
[393673002,1762908638289,-500.0,0.00019025,2]
[393673003,1762908638299,-608.56758331,0.00019025,2]
[393673004,1762908638308,-608.56758331,0.00019025,2]
[393673005,1762908638320,-608.56758331,0.00019025,2]
[393673006,1762908638329,-500.0,0.00019025,2]
[393673007,1762908638339,-608.56758331,0.00019025,2]
[393673008,1762908638349,-608.56758331,0.00019025,2]
[393673009,1762908638359,-608.56758331,0.00019025,2]
[393673010,1762908638368,-608.56758331,0.00019025,2]
[393673011,1762908638378,-608.56758331,0.00019025,2]
[393673012,1762908638388,-608.56758331,0.00019025,2]
[393673013,1762908638398,-608.56758331,0.00019025,2]
[393673014,1762908638408,-608.56758331,0.00019025,2]
[393673015,1762908638417,-608.56758331,0.00019025,2]
[393673016,1762908638427,-608.56758331,0.00019025,2]
[393673017,1762908638437,-608.56758331,0.00019025,2]
[393673018,1762908638447,-608.56758331,0.00019025,2]
[393673019,1762908638457,-608.56758331,0.00019025,2]
[393673020,1762908638467,-608.56758331,0.00019025,2]
[393673021,1762908638476,-608.56758331,0.00019025,2]
[393673022,1762908638486,-608.56758331,0.00019025,2]
[393673023,1762908638496,-608.56758331,0.00019025,2]
[393673024,1762908638506,-608.56758331,0.00019025,2]
[393673025,1762908638515,-608.56758331,0.00019025,2]
[393673026,1762908638525,-608.56758331,0.00019025,2]
[393673027,1762908638535,-608.56758331,0.00019025,2]
[393673028,1762908638544,-608.56758331,0.00019025,2]
[393673029,1762908638554,-608.56758331,0.00019025,2]
[393673030,1762908638563,-608.56758331,0.00019025,2]
[393673031,1762908638573,-608.56758331,0.00019025,2]
[393673032,1762908638582,-608.56758331,0.00019025,2]
[393673033,1762908638592,-608.56758331,0.00019025,2]
[393673034,1762908638601,-329.05554265,0.00019025,2]
[393673073,1762908640379,-3e-08,0.00019025,2]
[393673376,1762908643476,-279.51204063,0.00019025,2]
[393673377,1762908643487,-608.56758331,0.00019025,2]
[393673380,1762908643497,-608.56758331,0.00019025,2]
[393673382,1762908643506,-608.56758331,0.00019025,2]
[393673384,1762908643516,-608.56758331,0.00019025,2]
[393673386,1762908643526,-608.56758331,0.00019025,2]
[393673388,1762908643536,-608.56758331,0.00019025,2]
[393673390,1762908643546,-608.56758331,0.00019025,2]
[393673392,1762908643555,-480.08607881,0.00019025,2]
[393673394,1762908643567,-128.4815045,0.00019025,2]
[393673396,1762908643576,-442.6063951,0.00019025,2]
[393673711,1762908646791,-165.96118821,0.00019025,2]
[393673712,1762908646802,-608.56758331,0.00019025,2]
[393673714,1762908646812,-608.56758331,0.00019025,2]
[393673715,1762908646822,-608.56758331,0.00019025,2]
[393673716,1762908646832,-608.56758331,0.00019025,2]
[393673717,1762908646843,-608.56758331,0.00019025,2]
[393673718,1762908646853,-517.923833,0.00019025,2]
[393673719,1762908646981,-90.64375031,0.00019025,2]
[393673720,1762908646991,-608.56758331,0.00019025,2]
[393673721,1762908647001,-407.85561927,0.00019986,2]
[393673722,1762908647013,-844.3836,0.00019986,2]
[393673724,1762908647026,-6128.69681784,0.00019986,2]
[393673726,1762908647038,-765.74288187,0.00019986,2]
[393673732,1762909108131,152.25,0.00032877,120]
[393673733,1762909356014,5000.0,0.0003759,30]
[393673734,1762909539124,-602.81975907,0.00014845,2]
[393673735,1762909649091,-150.0,0.00014988,2]
[393673736,1762909649112,-128.37196393,0.00015068,2]
[393673737,1762909750085,-674.497896,0.00015032,2]
[393673738,1762909750105,-150.0,0.0001505,2]
[393673739,1762909750125,-80.00740077,0.00015068,2]
[393673740,1762909750144,-163.75550523,0.00015426,2]
[393673741,1762909754090,-136.24449477,0.00015426,2]
[393673742,1762909754110,-300.0,0.00015426,2]
[393673743,1762909754130,-1200.0,0.00015426,2]
[393673744,1762909754149,-300.0,0.00015426,2]
[393673745,1762909754167,-203.4222056,0.00015511,2]
[393673746,1762909754186,-300.0,0.00015963,2]
[393673747,1762909754205,-1200.0,0.00015964,2]
[393673748,1762909754228,-500.0,0.00015965,2]
[393673749,1762909754248,-500.0,0.00015965,2]
[393673750,1762909754270,-300.0,0.00015966,2]
[393673751,1762909754293,-300.0,0.00015966,2]
[393673752,1762909754315,-300.0,0.00015966,2]
[393673753,1762909754339,-300.0,0.00015966,2]
[393673754,1762909754359,-300.0,0.00015966,2]
[393673755,1762909754379,-300.0,0.00015966,2]
[393673756,1762909754400,-300.0,0.00015966,2]
[393673757,1762909754422,-300.0,0.00015966,2]
[393673758,1762909754442,-300.0,0.00015966,2]
[393673759,1762909754464,-300.0,0.00015966,2]
[393673760,1762909754492,-300.0,0.00015966,2]
[393673761,1762909754514,-300.0,0.00015966,2]
[393673762,1762909754536,-300.0,0.00015966,2]
[393673763,1762909754559,-300.0,0.00015966,2]
[393673764,1762909754581,-300.0,0.00015966,2]
[393673765,1762909754602,-600.0,0.00016284,2]
[393673766,1762909754622,-1221.33846555,0.00016512,2]
[393673767,1762909754644,-500.0,0.00016611,2]
[393673768,1762909754671,-500.0,0.00016611,2]
[393673769,1762909754696,-500.0,0.00016611,2]
[393673770,1762909754718,-500.0,0.00016611,2]
[393673771,1762909754739,-500.0,0.00016611,2]
[393673772,1762909754765,-500.0,0.00016611,2]
[393673773,1762909754787,-500.0,0.00016611,2]
[393673774,1762909754809,-500.0,0.00016611,2]
[393673775,1762909754829,-500.0,0.00016611,2]
[393673776,1762909754850,-500.0,0.00016611,2]
[393673777,1762909754871,-500.0,0.00016611,2]
[393673778,1762909754895,-500.0,0.00016611,2]
[393673779,1762909754918,-500.0,0.00016611,2]
[393673780,1762909754939,-500.0,0.00016611,2]
[393673781,1762909754962,-500.0,0.00016611,2]
[393673782,1762909754981,-500.0,0.00016611,2]
[393673783,1762909755001,-500.0,0.00016611,2]
[393673784,1762909755026,-500.0,0.00016611,2]
[393673785,1762909755048,-500.0,0.00016611,2]
[393673786,1762909755069,-276.3417108,0.00016611,2]
[393673787,1762909755094,-500.0,0.00016611,2]
[393673788,1762909755118,-500.0,0.00016611,2]
[393673789,1762909755141,-500.0,0.00016611,2]
[393673790,1762909755164,-399.35462862,0.00016611,2]
[393673791,1762909755184,-500.0,0.00016611,2]
[393673792,1762909755206,-500.0,0.00016611,2]
[393673793,1762909755228,-500.0,0.00016611,2]
[393673794,1762909755249,-500.0,0.00016611,2]
[393673795,1762909755272,-500.0,0.00016611,2]
[393673796,1762909755293,-500.0,0.00016611,2]
[393673797,1762909755318,-500.0,0.00016611,2]
[393673798,1762909755346,-500.0,0.00016611,2]
[393673799,1762909755368,-500.0,0.00016611,2]
[393673800,1762909755394,-500.0,0.00016611,2]
[393673801,1762909755418,-500.0,0.00016611,2]
[393673802,1762909755442,-500.0,0.00016611,2]
[393673803,1762909755561,-500.0,0.00016611,2]
[393673804,1762909755588,-500.0,0.00016611,2]
[393673805,1762909755609,-500.0,0.00016611,2]
[393673806,1762909755633,-500.0,0.00016611,2]
[393673807,1762909755655,-500.0,0.00016611,2]
[393673808,1762909755681,-500.0,0.00016611,2]
[393673809,1762909755702,-500.0,0.00016611,2]
[393673810,1762909755725,-500.0,0.00016611,2]
[393673811,1762909755748,-500.0,0.00016611,2]
[393673812,1762909755771,-500.0,0.00016611,2]
[393673813,1762909755794,-500.0,0.00016611,2]
[393673814,1762909755814,-500.0,0.00016611,2]
[393673815,1762909755839,-500.0,0.00016611,2]
[393673816,1762909755859,-500.0,0.00016611,2]
[393673817,1762909755884,-500.0,0.00016611,2]
[393673818,1762909755907,-500.0,0.00016611,2]
[393673819,1762909755931,-500.0,0.00016611,2]
[393673820,1762909755952,-500.0,0.00016611,2]
[393673821,1762909755977,-500.0,0.00016611,2]
[393673822,1762909755999,-500.0,0.00016611,2]
[393673823,1762909756019,-500.0,0.00016611,2]
[393673824,1762909756042,-500.0,0.00016611,2]
[393673825,1762909756063,-500.0,0.00016611,2]
[393673826,1762909756083,-175.4482258,0.00016611,2]
[393673827,1762909756105,-500.0,0.00016611,2]
[393673828,1762909756129,-500.0,0.00016611,2]
[393673829,1762909756154,-500.0,0.00016611,2]
[393673830,1762909756175,-500.0,0.00016611,2]
[393673831,1762909756196,-500.0,0.00016611,2]
[393673832,1762909756218,-500.0,0.00016611,2]
[393673833,1762909756243,-500.0,0.00016611,2]
[393673834,1762909756266,-500.0,0.00016611,2]
[393673835,1762909756289,-500.0,0.00016611,2]
[393673836,1762909756312,-500.0,0.00016611,2]
[393673837,1762909756338,-500.0,0.00016611,2]
[393673838,1762909756360,-500.0,0.00016611,2]
[393673839,1762909756383,-500.0,0.00016611,2]
[393673840,1762909756404,-500.0,0.00016611,2]
[393673841,1762909756427,-500.0,0.00016611,2]
[393673842,1762909756448,-441.38582096,0.00016611,2]
[393673843,1762909756470,-500.0,0.00016611,2]
[393673844,1762909756496,-500.0,0.00016611,2]
[393673845,1762909756517,-500.0,0.00016611,2]
[393673846,1762909756537,-500.0,0.00016611,2]
[393673847,1762909756558,-500.0,0.00016613,2]
[393673848,1762909756582,-500.0,0.00016673,2]
[393673849,1762909756603,-300.0,0.00016876,2]
[393673850,1762909756624,-420.0,0.00016876,2]
[393673851,1762909756644,-500.0,0.00016887,2]
[393673852,1762909756665,-572.0,0.00016961,2]
[393673853,1762909756686,-177.0,0.0001705,2]
[393673854,1762909756705,-856.99865284,0.00017073,2]
[393673855,1762909756724,-306.82356342,0.00017116,2]
[393673856,1762909756744,-500.0,0.00017117,2]
[393673857,1762909756763,-500.0,0.00017117,2]
[393673858,1762909756782,-413.45339151,0.00017117,2]
[393673859,1762909756801,-500.0,0.00017173,2]
[393673860,1762909756821,-1000.0,0.00017221,2]
[393673861,1762909756842,-3633.92324098,0.00017238,2]
[393673862,1762909756863,-420.0,0.00017454,2]
[393673863,1762909756883,-258.0,0.00017455,2]
[393673864,1762909756902,-3633.92324098,0.00017493,2]
[393673865,1762909756921,-391.65,0.00017621,2]
[393673866,1762909756940,-3633.92324098,0.00017656,2]
[393673867,1762909756962,-1000.0,0.00017721,2]
[393673868,1762909756982,-1500.0,0.00017768,2]
[393673869,1762909757004,-720.0,0.00017913,2]
[393673870,1762909757023,-3633.92324098,0.00018061,2]
[393673871,1762909757042,-3633.92324098,0.00018163,2]
[393673872,1762909757061,-500.0,0.00018316,2]
[393673873,1762909757081,-3633.92324098,0.00018396,2]
[393673874,1762909769096,-166.0,0.00018461,2]
[393673875,1762909771955,504.53870011,0.00016611,2]
[393673876,1762909771985,504.53870011,0.00016611,2]
[393673877,1762909772015,504.53870011,0.00016611,2]
[393673878,1762909772046,504.53870011,0.00016611,2]
[393673879,1762909772077,504.53870011,0.00016611,2]
[393673880,1762909772106,504.53870011,0.00016611,2]
[393673881,1762909772134,504.53870011,0.00016611,2]
[393673882,1762909772167,504.53870011,0.00016611,2]
[393673883,1762909772292,504.53870011,0.00016611,2]
[393673884,1762909772325,504.53870011,0.00016611,2]
[393673885,1762909772358,504.53870011,0.00016611,2]
[393673886,1762909772391,504.53870011,0.00016611,2]
[393673887,1762909772436,504.53870011,0.00016611,2]
[393673888,1762909772465,504.53870011,0.00016611,2]
[393673889,1762909772502,504.53870011,0.00016611,2]
[393673890,1762909772537,504.53870011,0.00016611,2]
[393673891,1762909772566,504.53870011,0.00016611,2]
[393673892,1762909772593,504.53870011,0.00016611,2]
[393673893,1762909772634,504.53870011,0.00016611,2]
[393673894,1762909772663,504.53870011,0.00016611,2]
[393673895,1762909772695,504.53870011,0.00016611,2]
[393673896,1762909772722,504.53870011,0.00016611,2]
[393673897,1762909772756,504.53870011,0.00016611,2]
[393673898,1762909772783,504.53870011,0.00016611,2]
[393673899,1762909772809,504.53870011,0.00016611,2]
[393673900,1762909772838,504.53870011,0.00016611,2]
[393673901,1762909772868,504.53870011,0.00016611,2]
[393673902,1762909772898,504.53870011,0.00016611,2]
[393673903,1762909772925,504.53870011,0.00016611,2]
[393673904,1762909772957,504.53870011,0.00016611,2]
[393673905,1762909773002,504.53870011,0.00016611,2]
[393673906,1762909773032,504.53870011,0.00016611,2]
[393673907,1762909773068,504.53870011,0.00016611,2]
[393673908,1762909773097,504.53870011,0.00016611,2]
[393673909,1762909773135,504.53870011,0.00016611,2]
[393673910,1762909773168,504.53870011,0.00016611,2]
[393673911,1762909773201,504.53870011,0.00016611,2]
[393673912,1762909773233,504.53870011,0.00016611,2]
[393673913,1762909773261,504.53870011,0.00016611,2]
[393673914,1762909773299,504.53870011,0.00016611,2]
[393673915,1762909773350,504.53870011,0.00016611,2]
[393673916,1762909804038,500.0,0.00016673,2]
[393673917,1762909804091,500.0,0.00017221,2]
[393673918,1762909807374,500.0,0.00016611,2]
[393673919,1762909807414,500.0,0.00016611,2]
[393673920,1762909807552,500.0,0.00016611,2]
[393673921,1762909807586,500.0,0.00016611,2]
[393673922,1762909807619,500.0,0.00016611,2]
[393673923,1762909807655,500.0,0.00016611,2]
[393673924,1762909807687,500.0,0.00016611,2]
[393673925,1762909807725,500.0,0.00016611,2]
[393673926,1762909807762,494.9331312,0.00016611,2]
[393673927,1762909807794,500.0,0.00016611,2]
[393673952,1762909832343,-3633.92324098,0.00018743,2]
[393673953,1762909832354,-3633.92324098,0.00018909,2]
[393673954,1762909832363,-856.99865283,0.00019027,2]
[393673955,1762909832373,-204.0,0.0001905,2]
[393673956,1762909832383,-300.0,0.00019239,2]
[393673957,1762909832394,-3633.92324098,0.0001924,2]
[393673958,1762909832403,-1792.8028451,0.00019262,2]
[393673959,1762909832413,-13218.44541285,0.00019262,2]
[393673960,1762909832424,-698.75772006,0.00019262,2]
[393673962,1762909838219,-1872.68112019,0.00019262,2]
[393673963,1762909838229,-500.0,0.00019548,2]
[393673964,1762909838239,-500.0,0.00019548,2]
[393673965,1762909838248,-266.59495874,0.00019548,2]
[393673966,1762909838258,-197.3713012,0.00019548,2]
[393673967,1762909838268,-500.0,0.00019548,2]
[393673968,1762909838278,-500.0,0.00019548,2]
[393673969,1762909838288,-500.0,0.00019548,2]
[393673970,1762909838298,-500.0,0.00019548,2]
[393673971,1762909838308,-153.61811186,0.00019548,2]
[393673972,1762909838323,-32.54280212,0.00019548,2]
[393673973,1762909838332,-500.0,0.00019548,2]
[393673974,1762909838342,-500.0,0.00019548,2]
[393673975,1762909838351,-500.0,0.00019548,2]
[393673976,1762909838360,-111.16394822,0.00019548,2]
[393673977,1762909838371,-388.83605178,0.00019548,2]
[393673978,1762909838380,-317.23313582,0.00019548,2]
[393673979,1762909838390,-500.0,0.00019548,2]
[393673980,1762909838400,-500.0,0.00019548,2]
[393673981,1762909838410,-3633.92324098,0.00019549,2]
[393673982,1762909838420,-151.0,0.00019726,2]
[393673983,1762909838430,-151.0,0.00019726,2]
[393673984,1762909838440,-151.0,0.00019726,2]
[393673985,1762909838449,-188.653858,0.00019726,2]
[393673986,1762909838459,-160.0,0.00019846,2]
[393673987,1762909838469,-600.0,0.00019939,2]
[393673988,1762909838479,-500.0,0.00019973,2]
[393673989,1762909838488,-200.0,0.00019985,2]
[393673990,1762909838497,-200.0,0.00019985,2]
[393673991,1762909838511,-544.06111302,0.00020064,3]
[393673992,1762909838520,-2176.24445206,0.00020064,3]
[393673993,1762909838529,-188.79444997,0.00020064,3]
[393673994,1762909838539,-500.0,0.00020084,2]
[393673995,1762909838558,-500.0,0.00020084,2]
[393673996,1762909838569,-500.0,0.00020089,2]
[393673997,1762909838579,-508.90166363,0.00020089,2]
[393673998,1762909838589,-300.0,0.000201,2]
[393673999,1762909838600,-3633.92324098,0.00020137,2]
[393674000,1762909838610,-525.51357507,0.00020172,2]
[393674001,1762909838619,-945.92443513,0.00020172,2]
[393674002,1762909838629,-1681.64344023,0.00020172,2]
[393674003,1762909838639,-2624.94030748,0.00020172,2]
[393674004,1762909838650,-500.0,0.00020173,2]
[393674005,1762909838660,-247.560161,0.00020187,2]
[393674006,1762909838670,-15310.68614312,0.0002019,2]
[393674007,1762909838682,-15961.66061117,0.0002019,2]
[393674008,1762909838692,-2694.5873892,0.00020191,2]
[393674009,1762909838702,-214.77649439,0.00020352,2]
[393674010,1762909838711,-3633.92324098,0.00020353,2]
[393674011,1762909838721,-500.0,0.00020547,2]
[393674012,1762909838730,-151.0,0.00020548,7]
[393674013,1762909838739,-151.0,0.00020548,7]
[393674014,1762909838748,-151.0,0.00020548,7]
[393674015,1762909838758,-151.0,0.00020548,7]
[393674016,1762909838767,-168.635705,0.00020698,2]
[393674017,1762909838777,-334.32350516,0.00020756,2]
[393674018,1762909838786,-3633.92324098,0.00020767,2]
[393674019,1762909838929,-3633.92324098,0.00020861,2]
[393674020,1762909838940,-180.88161242,0.00020875,2]
[393674021,1762909838951,-420.0,0.00020965,2]
[393674022,1762909838961,-856.99865283,0.00020981,2]
[393674023,1762909838971,-231.0,0.0002105,2]
[393674024,1762909838981,-505.8,0.00021095,10]
[393674025,1762909838991,-601.78230929,0.00021125,2]
[393674026,1762909839001,-210.76928409,0.00021214,2]
[393674027,1762909839011,-3633.92324098,0.00021328,2]
[393674028,1762909839021,-3633.92324098,0.00021393,2]
[393674029,1762909839031,-1069.83521652,0.00021494,2]
[393674030,1762909839041,-379.38471136,0.00021596,2]
[393674031,1762909839051,-754.4226221,0.00021608,3]
[393674032,1762909839060,-3523.1994021,0.00021748,2]
[393674033,1762909839070,-150.12043422,0.000218,2]
[393674034,1762909839079,-3633.92324098,0.00021877,2]
[393674035,1762909839090,-151.0,0.00021918,7]
[393674036,1762909839100,-151.0,0.00021918,7]
[393674037,1762909839109,-720.0,0.00021933,20]
[393674038,1762909839119,-505.8,0.00021966,10]
[393674039,1762909839128,-674.46170908,0.00021976,2]
[393674040,1762909839138,-3633.92324107,0.00022154,2]
[393674041,1762909839148,-160.0,0.00022265,2]
[393674042,1762909839159,-594.51815945,0.00022276,3]
[393674043,1762909839169,-786.1320468,0.00022302,2]
[393674044,1762909839179,-674.497896,0.00022548,2]
[393674045,1762909839189,-260.0,0.00022813,2]
[393674046,1762909839198,-587.0,0.00022847,2]
[393674047,1762909839208,-161.09,0.000229,7]
[393674048,1762909839218,-1467.8,0.000229,7]
[393674049,1762909839229,-856.99865283,0.00022934,2]
[393674050,1762909839238,-500.0,0.00023014,2]
[393674051,1762909839248,-258.0,0.0002305,2]
[393674052,1762909839257,-151.0,0.000233,10]
[393674053,1762909839267,-360.0,0.00023361,2]
[393674054,1762909839277,-460.0,0.00023909,2]
[393674055,1762909839286,-864.0,0.00024126,20]
[393674056,1762909839296,-3022.64199452,0.00024142,2]
[393674057,1762909839309,-16675.88113638,0.00024142,2]
[393674058,1762909839320,-13725.12002755,0.00024142,2]
[393674065,1762909840523,-790.60290983,0.00024142,2]
[393674148,1762909847077,-483.51,0.00024142,2]
[393674150,1762909847088,-3936.78288736,0.00024142,2]
[393674152,1762909847097,-300.0,0.00024457,2]
[393674154,1762909847106,-6779.48323066,0.00024558,2]
[393674156,1762909847117,-4494.13693686,0.00024558,2]
[393674595,1762910833132,-1944.74945916,0.000159,2]
[393674596,1762910833154,-150.0,0.00015913,2]
[393674597,1762910833174,-500.0,0.00016,2]
[393674598,1762910833193,-500.0,0.0001707,2]
[393674599,1762910833213,-500.0,0.00017116,2]
[393674600,1762910833235,-177.0,0.00017913,2]
[393674601,1762910833255,-300.0,0.00019539,2]
[393674602,1762910833275,-215.51141417,0.0001954,2]
[393674603,1762910833302,-500.0,0.0001954,2]
[393674604,1762910833323,-500.0,0.0001954,2]
[393674605,1762910833346,-500.0,0.0001954,2]
[393674606,1762910833368,-500.0,0.0001954,2]
[393674607,1762910833390,-500.0,0.0001954,2]
[393674608,1762910833411,-500.0,0.0001954,2]
[393674609,1762910833438,-500.0,0.0001954,2]
[393674610,1762910833460,-500.0,0.0001954,2]
[393674611,1762910833482,-500.0,0.0001954,2]
[393674612,1762910833503,-500.0,0.0001954,2]
[393674613,1762910833525,-500.0,0.0001954,2]
[393674614,1762910833551,-500.0,0.0001954,2]
[393674615,1762910833573,-319.34846933,0.0001954,2]
[393674617,1762910850084,-180.65153067,0.0001954,2]
[393674618,1762910850108,-500.0,0.0001954,2]
[393674619,1762910850130,-500.0,0.0001954,2]
[393674620,1762910850152,-500.0,0.0001954,2]
[393674621,1762910850172,-500.0,0.0001954,2]
[393674622,1762910850193,-500.0,0.0001954,2]
[393674623,1762910850215,-500.0,0.0001954,2]
[393674624,1762910850242,-500.0,0.0001954,2]
[393674625,1762910850264,-500.0,0.0001954,2]
[393674626,1762910850285,-500.0,0.0001954,2]
[393674627,1762910850310,-500.0,0.0001954,2]
[393674628,1762910850336,-500.0,0.0001954,2]
[393674629,1762910850358,-500.0,0.0001954,2]
[393674630,1762910850379,-500.0,0.0001954,2]
[393674631,1762910850400,-608.10162604,0.0001954,2]
[393674632,1762910850423,-500.0,0.0001954,2]
[393674633,1762910850445,-500.0,0.0001954,2]
[393674634,1762910850472,-500.0,0.0001954,2]
[393674635,1762910850494,-500.0,0.0001954,2]
[393674636,1762910850515,-500.0,0.0001954,2]
[393674637,1762910850538,-500.0,0.0001954,2]
[393674638,1762910850559,-500.0,0.0001954,2]
[393674639,1762910850586,-500.0,0.0001954,2]
[393674640,1762910850609,-500.0,0.0001954,2]
[393674641,1762910850632,-250.0,0.0001954,2]
[393674642,1762910850655,-500.0,0.0001954,2]
[393674643,1762910850676,-581.30846374,0.0001954,2]
[393674644,1762910850717,-500.0,0.0001954,2]
[393674645,1762910850740,-500.0,0.0001954,2]
[393674646,1762910850763,-500.0,0.0001954,2]
[393674647,1762910850786,-500.0,0.0001954,2]
[393674648,1762910850814,-500.0,0.0001954,2]
[393674649,1762910850837,-500.0,0.0001954,2]
[393674650,1762910850860,-500.0,0.0001954,2]
[393674651,1762910850890,-500.0,0.0001954,2]
[393674652,1762910850913,-500.0,0.0001954,2]
[393674653,1762910850935,-293.00982329,0.0001954,2]
[393674654,1762910850956,-500.0,0.0001954,2]
[393674655,1762910850982,-500.0,0.0001954,2]
[393674656,1762910851003,-500.0,0.0001954,2]
[393674657,1762910851027,-500.0,0.0001954,2]
[393674658,1762910851054,-500.0,0.0001954,2]
[393674659,1762910851087,-500.0,0.0001954,2]
[393674660,1762910851124,-500.0,0.0001954,2]
[393674661,1762910851154,-126.22602317,0.0001954,2]
[393674664,1762911015289,205.6282449,0.00037587,120]
[393674665,1762911016059,158.47315585,0.00037587,20]
[393674703,1762911032521,-1110.4495601,0.0001944,2]
[393674705,1762911032534,-616.0504399,0.0001944,2]
[393674716,1762911034010,-328.9495601,0.0001944,2]
[393674717,1762911034020,-150.0,0.00019441,2]
[393674718,1762911034029,-221.93240391,0.00019442,2]